{"text_format":"1","workbook":"xlsx","n_sheets":2,"sheets":["Лист3","НОЯБРЬ 2020"],"not_rendered":{"charts":0,"images":0,"macros":1,"external_links":0,"defined_names":0,"comments":0,"pivot_tables":0},"unopened":[],"bounds":{"document_bytes":16777216,"sheet_cells":100000,"rows_first":2000,"rows_last":500,"rows_between":2000,"halvings":0,"cell_chars":16384,"cell_head_chars":4096},"cells_cut":0,"cells_raw":0,"read":"whole","date_system":"1900"}

{"sheet":"Лист3","index":0,"n_rows":48,"n_cols":55,"rows_kept":48,"cut":false,"hidden":false,"merged":[[0,43,1,54],[2,43,3,54],[4,43,5,54],[47,6,47,31],[35,1,35,35],[8,49,9,49],[8,43,9,43],[8,44,9,44],[8,45,9,45],[8,46,9,46],[8,47,9,47],[8,48,9,48],[8,34,9,34],[8,35,9,35],[8,38,9,38],[8,40,9,40],[8,42,9,42],[8,28,9,28],[8,29,9,29],[8,30,9,30],[8,31,9,31],[8,32,9,32],[8,33,9,33],[8,23,9,23],[8,24,9,24],[8,25,9,25],[8,26,9,26],[8,41,9,41],[7,54,9,54],[8,5,9,5],[8,6,9,6],[8,7,9,7],[8,8,9,8],[8,9,9,9],[7,36,7,38],[7,39,9,39],[8,15,9,15],[7,40,7,49],[7,50,9,50],[7,51,8,52],[7,53,9,53],[8,10,9,10],[8,11,9,11],[8,12,9,12],[1,6,2,27],[3,6,4,28],[7,1,9,1],[7,2,9,2],[7,3,9,4],[7,5,7,35],[8,13,9,13],[8,14,9,14],[8,27,9,27],[8,16,9,16],[8,17,9,17],[8,18,9,18],[8,19,9,19],[8,20,9,20],[8,21,9,21],[8,22,9,22]]}
[null,null,null,null,null,null,null,null,null,null,null,null,null,null,null,null,null,null,null,null,null,null,null,null,null,null,null,null,null,null,null,null,null,null,null,null,null,null,null,null,null,null,null,"                                                УТВЕРЖДАЮ:"]
[null,null,null,null,null,null,"ТАБЕЛЬ УЧЕТА РАБОЧЕГО ВРЕМЕНИ"]
[null,null,null,null,null,null,null,null,null,null,null,null,null,null,null,null,null,null,null,null,null,null,null,null,null,null,null,null,null,null,null,null,null,null,null,null,null,null,null,null,null,null,null,"Директор  _____________ Д.В.Гурский"]
[null,null,null,null,null,null,"ЗА МАЙ 2020 ГОДА",null,null,null,null,null,null,null,null,null,null,null,null,null,null,null,null,null,null,null,null,null,null,null,null,null,null,null,null,null,null,null,null,null,null,null,null,"                     Директор____________Д.В.Гурский"]
[]
[]
[null,null,null,null,null,null,null,null,null,null,null,null,null,null,null,null,null,null,null,null,null,null,null,null,null,null,null,31]
[null,"Фамилия, и., о.","Профессия (должность)","Разряд (оклад)",null,"Число месяца",null,null,null,null,null,null,null,null,null,null,null,null,null,null,null,null,null,null,null,null,null,null,null,null,null,null,null,null,null,null,"Всего отработано за месяц",null,null,"Выходные (В)","Дни неявок",null,null,null,null,null,null,null,null,null,"Всего чел.-дней явок и неявок на работу","Среднесписочная численность",null,"Списочная численность работников","В т.ч. женщин"]
[null,null,null,null,null,1,2,3,4,5,6,7,8,9,10,11,12,13,14,15,16,17,18,19,20,21,22,23,24,25,26,27,28,29,30,31,"дней","часов","в т.ч. Командировок (К)",null,"Трудовой отпуск (О)","Оплачиваемый учебный отпуск (УО)","Неоплачиваемый учебный отпуск (УН)","Отпуск по беременности и родам (Р)","Больничный (Б)","Прочие неявки, разрешенные законом (Г)","С разрешения администрации (А)","Прогул (П)","Донорский день (Д)","Отпуск по уходу за ребенком (ОЖ)"]
[null,null,null,null,null,null,null,null,null,null,null,null,null,null,null,null,null,null,null,null,null,null,null,null,null,null,null,null,null,null,null,null,null,null,null,null,null,null,null,null,null,null,null,null,null,null,null,null,null,null,null,"человек","ставка"]
[null,"Гурский Д.В.","Директор",null,null,null,null,null,null,null,null,null,null,null,null,null,null,null,null,null,null,null,null,null,null,null,null,null,null,null,null,null,null,null,null,null,{"$f":"IF(ISNUMBER(F11),1,0)+IF(ISNUMBER(G11),1,0)+IF(ISNUMBER(H11),1,0)+IF(ISNUMBER(I11),1,0)+IF(ISNUMBER(J11),1,0)+IF(ISNUMBER(K11),1,0)+IF(ISNUMBER(L11),1,0)+IF(ISNUMBER(M11),1,0)+IF(ISNUMBER(N11),1,0)+IF(ISNUMBER(O11),1,0)+IF(ISNUMBER(P11),1,0)+IF(ISNUMBER(Q11),1,0)+IF(ISNUMBER(R11),1,0)+IF(ISNUMBER(S11),1,0)+IF(ISNUMBER(T11),1,0)+IF(ISNUMBER(U11),1,0)+IF(ISNUMBER(V11),1,0)+IF(ISNUMBER(W11),1,0)+IF(ISNUMBER(X11),1,0)+IF(ISNUMBER(Y11),1,0)+IF(ISNUMBER(Z11),1,0)+IF(ISNUMBER(AA11),1,0)+IF(ISNUMBER(AB11),1,0)+IF(ISNUMBER(AC11),1,0)+IF(ISNUMBER(AD11),1,0)+IF(ISNUMBER(AE11),1,0)+IF(ISNUMBER(AF11),1,0)+IF(ISNUMBER(AG11),1,0)+IF(ISNUMBER(AH11),1,0)+IF(ISNUMBER(AI11),1,0)+IF(ISNUMBER(AJ11),1,0)+AM11","v":0},{"$f":"(IF(ISTEXT(F11),0,F11)+IF(ISTEXT(G11),0,G11)+IF(ISTEXT(H11),0,H11)+IF(ISTEXT(I11),0,I11)+IF(ISTEXT(J11),0,J11)+IF(ISTEXT(K11),0,K11)+IF(ISTEXT(L11),0,L11)+IF(ISTEXT(M11),0,M11)+IF(ISTEXT(N11),0,N11)+IF(ISTEXT(O11),0,O11)+IF(ISTEXT(P11),0,P11)+IF(ISTEXT(Q11),0,Q11)+IF(ISTEXT(R11),0,R11)+IF(ISTEXT(S11),0,S11)+IF(ISTEXT(T11),0,T11)+IF(ISTEXT(U11),0,U11)+IF(ISTEXT(V11),0,V11)+IF(ISTEXT(W11),0,W11)+IF(ISTEXT(X11),0,X11)+IF(ISTEXT(Y11),0,Y11)+IF(ISTEXT(Z11),0,Z11)+IF(ISTEXT(AA11),0,AA11)+IF(ISTEXT(AB11),0,AB11)+IF(ISTEXT(AC11),0,AC11)+IF(ISTEXT(AD11),0,AD11)+IF(ISTEXT(AE11),0,AE11)+IF(ISTEXT(AF11),0,AF11)+IF(ISTEXT(AG11),0,AG11)+IF(ISTEXT(AH11),0,AH11)+IF(ISTEXT(AI11),0,AI11)+IF(ISTEXT(AJ11),0,AJ11))+AM11*8","v":0},{"$f":"COUNTIF(F11:AJ11,\"к\")","v":0},{"$f":"IF(B11=0,0,COUNTIF(F11:AJ11,\"в\"))","v":0},{"$f":"COUNTIF(F11:AJ11,\"о\")","v":0},{"$f":"COUNTIF(F11:AJ11,\"уо\")","v":0},{"$f":"COUNTIF(F11:AJ11,\"ун\")","v":0},{"$f":"COUNTIF(F11:AJ11,\"р\")","v":0},{"$f":"COUNTIF(F11:AJ11,\"б\")","v":0},{"$f":"COUNTIF(F11:AJ11,\"г\")","v":0},{"$f":"COUNTIF(F11:AJ11,\"а\")","v":0},{"$f":"COUNTIF(F11:AJ11,\"п\")","v":0},{"$f":"COUNTIF(F11:AJ11,\"д\")","v":0},{"$f":"COUNTIF(F11:AJ11,\"ож\")","v":0},{"$f":"AK11+AN11+AO11+AP11+AQ11+AR11+AS11+AT11+AU11+AV11+AW11+AX11","v":0},{"$f":"IF(BA11=0,0,IF(BA11=1,(IF((AK11+#REF!+AO11+AP11)=0,0,((AY11-(AQ11+AR11+AS11+AT11+AU11+AV11+AW11+AX11))/#REF!))),IF(BA11=0.75,(IF((AK11+#REF!+AO11+AP11)=0,0,((AY11-(AQ11+AR11+AS11+AT11+AU11+AV11+AW11+AX11))/#REF!)))*0.75,IF(BA11=0.5,(IF((AK11+#REF!+AO11+AP11)=0,0,((AY11-(AQ11+AR11+AS11+AT11+AU11+AV11+AW11+AX11))/#REF!)))*0.5,IF(BA11=0.25,(IF((AK11+#REF!+AO11+AP11)=0,0,((AY11-(AQ11+AR11+AS11+AT11+AU11+AV11+AW11+AX11))/#REF!)))*0.25)))))","v":0},null,{"$f":"AY11/$AL$8","v":{"$error":"#DIV/0!"}}]
[null,"Михаловская А.В.","главный бухгалтер",null,null,null,null,null,null,null,null,null,null,null,null,null,null,null,null,null,null,null,null,null,null,null,null,null,null,null,null,null,null,null,null,null,0,0,0,0,0,0,0,0,0,0,0,0,0,0,0,{"$f":"IF(BA12=0,0,IF(BA12=1,(IF((AK12+#REF!+AO12+AP12)=0,0,((AY12-(AQ12+AR12+AS12+AT12+AU12+AV12+AW12+AX12))/#REF!))),IF(BA12=0.75,(IF((AK12+#REF!+AO12+AP12)=0,0,((AY12-(AQ12+AR12+AS12+AT12+AU12+AV12+AW12+AX12))/#REF!)))*0.75,IF(BA12=0.5,(IF((AK12+#REF!+AO12+AP12)=0,0,((AY12-(AQ12+AR12+AS12+AT12+AU12+AV12+AW12+AX12))/#REF!)))*0.5,IF(BA12=0.25,(IF((AK12+#REF!+AO12+AP12)=0,0,((AY12-(AQ12+AR12+AS12+AT12+AU12+AV12+AW12+AX12))/#REF!)))*0.25)))))","v":0},null,{"$error":"#DIV/0!"}]
[null,"Дебесь В.В.","нач.участка",null,null,null,null,null,null,null,null,null,null,null,null,null,null,null,null,null,null,null,null,null,null,null,null,null,null,null,null,null,null,null,null,null,0,0,0,0,0,0,0,0,0,0,0,0,0,0,0,{"$f":"IF(BA13=0,0,IF(BA13=1,(IF((AK13+#REF!+AO13+AP13)=0,0,((AY13-(AQ13+AR13+AS13+AT13+AU13+AV13+AW13+AX13))/#REF!))),IF(BA13=0.75,(IF((AK13+#REF!+AO13+AP13)=0,0,((AY13-(AQ13+AR13+AS13+AT13+AU13+AV13+AW13+AX13))/#REF!)))*0.75,IF(BA13=0.5,(IF((AK13+#REF!+AO13+AP13)=0,0,((AY13-(AQ13+AR13+AS13+AT13+AU13+AV13+AW13+AX13))/#REF!)))*0.5,IF(BA13=0.25,(IF((AK13+#REF!+AO13+AP13)=0,0,((AY13-(AQ13+AR13+AS13+AT13+AU13+AV13+AW13+AX13))/#REF!)))*0.25)))))","v":0},null,{"$error":"#DIV/0!"}]
[null,"Богомолов А.Н.","вед. юрисконсульт",null,null,null,null,null,null,null,null,null,null,null,null,null,null,null,null,null,null,null,null,null,null,null,null,null,null,null,null,null,null,null,null,null,0,0,0,0,0,0,0,0,0,0,0,0,0,0,0,{"$f":"IF(BA14=0,0,IF(BA14=1,(IF((AK14+#REF!+AO14+AP14)=0,0,((AY14-(AQ14+AR14+AS14+AT14+AU14+AV14+AW14+AX14))/#REF!))),IF(BA14=0.75,(IF((AK14+#REF!+AO14+AP14)=0,0,((AY14-(AQ14+AR14+AS14+AT14+AU14+AV14+AW14+AX14))/#REF!)))*0.75,IF(BA14=0.5,(IF((AK14+#REF!+AO14+AP14)=0,0,((AY14-(AQ14+AR14+AS14+AT14+AU14+AV14+AW14+AX14))/#REF!)))*0.5,IF(BA14=0.25,(IF((AK14+#REF!+AO14+AP14)=0,0,((AY14-(AQ14+AR14+AS14+AT14+AU14+AV14+AW14+AX14))/#REF!)))*0.25)))))","v":0},null,{"$error":"#DIV/0!"}]
[null,"Шкурдюк А.А.","вед.специалист по организации закупок",null,null,null,null,null,null,null,null,null,null,null,null,null,null,null,null,null,null,null,null,null,null,null,null,null,null,null,null,null,null,null,null,null,0,0,0,0,0,0,0,0,0,0,0,0,0,0,{"$f":"AK15+AN15+AO15+AP15+AQ15+AR15+AS15+AT15+AU15+AV15+AW15+AX15","v":0},{"$f":"IF(BA15=0,0,IF(BA15=1,(IF((AK15+#REF!+AO15+AP15)=0,0,((AY15-(AQ15+AR15+AS15+AT15+AU15+AV15+AW15+AX15))/#REF!))),IF(BA15=0.75,(IF((AK15+#REF!+AO15+AP15)=0,0,((AY15-(AQ15+AR15+AS15+AT15+AU15+AV15+AW15+AX15))/#REF!)))*0.75,IF(BA15=0.5,(IF((AK15+#REF!+AO15+AP15)=0,0,((AY15-(AQ15+AR15+AS15+AT15+AU15+AV15+AW15+AX15))/#REF!)))*0.5,IF(BA15=0.25,(IF((AK15+#REF!+AO15+AP15)=0,0,((AY15-(AQ15+AR15+AS15+AT15+AU15+AV15+AW15+AX15))/#REF!)))*0.25)))))","v":0},null,{"$f":"AY15/$AL$8","v":{"$error":"#DIV/0!"}}]
[null,"Страшинская И.П.","инженер по ОТ",null,null,null,null,null,null,null,null,null,null,null,null,null,null,null,null,null,null,null,null,null,null,null,null,null,null,null,null,null,null,null,null,null,0,0,0,0,0,0,0,0,0,0,0,0,0,0,0,{"$f":"IF(BA16=0,0,IF(BA16=1,(IF((AK16+#REF!+AO16+AP16)=0,0,((AY16-(AQ16+AR16+AS16+AT16+AU16+AV16+AW16+AX16))/#REF!))),IF(BA16=0.75,(IF((AK16+#REF!+AO16+AP16)=0,0,((AY16-(AQ16+AR16+AS16+AT16+AU16+AV16+AW16+AX16))/#REF!)))*0.75,IF(BA16=0.5,(IF((AK16+#REF!+AO16+AP16)=0,0,((AY16-(AQ16+AR16+AS16+AT16+AU16+AV16+AW16+AX16))/#REF!)))*0.5,IF(BA16=0.25,(IF((AK16+#REF!+AO16+AP16)=0,0,((AY16-(AQ16+AR16+AS16+AT16+AU16+AV16+AW16+AX16))/#REF!)))*0.25)))))","v":0},null,{"$error":"#DIV/0!"}]
[null,"Болдачёв В.В.","зав.мастерской",null,null,null,null,null,null,null,null,null,null,null,null,null,null,null,null,null,null,null,null,null,null,null,null,null,null,null,null,null,null,null,null,null,0,0,0,0,0,0,0,0,0,0,0,0,0,0,0,{"$f":"IF(BA17=0,0,IF(BA17=1,(IF((AK17+#REF!+AO17+AP17)=0,0,((AY17-(AQ17+AR17+AS17+AT17+AU17+AV17+AW17+AX17))/#REF!))),IF(BA17=0.75,(IF((AK17+#REF!+AO17+AP17)=0,0,((AY17-(AQ17+AR17+AS17+AT17+AU17+AV17+AW17+AX17))/#REF!)))*0.75,IF(BA17=0.5,(IF((AK17+#REF!+AO17+AP17)=0,0,((AY17-(AQ17+AR17+AS17+AT17+AU17+AV17+AW17+AX17))/#REF!)))*0.5,IF(BA17=0.25,(IF((AK17+#REF!+AO17+AP17)=0,0,((AY17-(AQ17+AR17+AS17+AT17+AU17+AV17+AW17+AX17))/#REF!)))*0.25)))))","v":0},null,{"$error":"#DIV/0!"}]
[null,"Спиридович И.В.","зав.гаражом",null,null,null,null,null,null,null,null,null,null,null,null,null,null,null,null,null,null,null,null,null,null,null,null,null,null,null,null,null,null,null,null,null,0,0,0,0,0,0,0,0,0,0,0,0,0,0,0,{"$f":"IF(BA18=0,0,IF(BA18=1,(IF((AK18+#REF!+AO18+AP18)=0,0,((AY18-(AQ18+AR18+AS18+AT18+AU18+AV18+AW18+AX18))/#REF!))),IF(BA18=0.75,(IF((AK18+#REF!+AO18+AP18)=0,0,((AY18-(AQ18+AR18+AS18+AT18+AU18+AV18+AW18+AX18))/#REF!)))*0.75,IF(BA18=0.5,(IF((AK18+#REF!+AO18+AP18)=0,0,((AY18-(AQ18+AR18+AS18+AT18+AU18+AV18+AW18+AX18))/#REF!)))*0.5,IF(BA18=0.25,(IF((AK18+#REF!+AO18+AP18)=0,0,((AY18-(AQ18+AR18+AS18+AT18+AU18+AV18+AW18+AX18))/#REF!)))*0.25)))))","v":0},null,{"$error":"#DIV/0!"}]
[null,"Шапель Е.И.","начальник ППО",null,null,null,null,null,null,null,null,null,null,null,null,null,null,null,null,null,null,null,null,null,null,null,null,null,null,null,null,null,null,null,null,null,0,0,0,0,0,0,0,0,0,0,0,0,0,0,0,{"$f":"IF(BA19=0,0,IF(BA19=1,(IF((AK19+#REF!+AO19+AP19)=0,0,((AY19-(AQ19+AR19+AS19+AT19+AU19+AV19+AW19+AX19))/#REF!))),IF(BA19=0.75,(IF((AK19+#REF!+AO19+AP19)=0,0,((AY19-(AQ19+AR19+AS19+AT19+AU19+AV19+AW19+AX19))/#REF!)))*0.75,IF(BA19=0.5,(IF((AK19+#REF!+AO19+AP19)=0,0,((AY19-(AQ19+AR19+AS19+AT19+AU19+AV19+AW19+AX19))/#REF!)))*0.5,IF(BA19=0.25,(IF((AK19+#REF!+AO19+AP19)=0,0,((AY19-(AQ19+AR19+AS19+AT19+AU19+AV19+AW19+AX19))/#REF!)))*0.25)))))","v":0},null,{"$error":"#DIV/0!"}]
[null,"Горбач Т.В.","вед.инженер ОиНТ",null,null,null,null,null,null,null,null,null,null,null,null,null,null,null,null,null,null,null,null,null,null,null,null,null,null,null,null,null,null,null,null,null,0,0,0,0,0,0,0,0,0,0,0,0,0,0,0,{"$f":"IF(BA20=0,0,IF(BA20=1,(IF((AK20+#REF!+AO20+AP20)=0,0,((AY20-(AQ20+AR20+AS20+AT20+AU20+AV20+AW20+AX20))/#REF!))),IF(BA20=0.75,(IF((AK20+#REF!+AO20+AP20)=0,0,((AY20-(AQ20+AR20+AS20+AT20+AU20+AV20+AW20+AX20))/#REF!)))*0.75,IF(BA20=0.5,(IF((AK20+#REF!+AO20+AP20)=0,0,((AY20-(AQ20+AR20+AS20+AT20+AU20+AV20+AW20+AX20))/#REF!)))*0.5,IF(BA20=0.25,(IF((AK20+#REF!+AO20+AP20)=0,0,((AY20-(AQ20+AR20+AS20+AT20+AU20+AV20+AW20+AX20))/#REF!)))*0.25)))))","v":0},null,{"$error":"#DIV/0!"}]
[null,"Мамчиц Е.И.","инженер ППО",null,null,null,null,null,null,null,null,null,null,null,null,null,null,null,null,null,null,null,null,null,null,null,null,null,null,null,null,null,null,null,null,null,0,0,0,0,0,0,0,0,0,0,0,0,0,0,0,{"$f":"IF(BA21=0,0,IF(BA21=1,(IF((AK21+#REF!+AO21+AP21)=0,0,((AY21-(AQ21+AR21+AS21+AT21+AU21+AV21+AW21+AX21))/#REF!))),IF(BA21=0.75,(IF((AK21+#REF!+AO21+AP21)=0,0,((AY21-(AQ21+AR21+AS21+AT21+AU21+AV21+AW21+AX21))/#REF!)))*0.75,IF(BA21=0.5,(IF((AK21+#REF!+AO21+AP21)=0,0,((AY21-(AQ21+AR21+AS21+AT21+AU21+AV21+AW21+AX21))/#REF!)))*0.5,IF(BA21=0.25,(IF((AK21+#REF!+AO21+AP21)=0,0,((AY21-(AQ21+AR21+AS21+AT21+AU21+AV21+AW21+AX21))/#REF!)))*0.25)))))","v":0},null,{"$error":"#DIV/0!"}]
[null,"Шеверенко Э.В.","ст.инсп.по кадрам",null,null,null,null,null,null,null,null,null,null,null,null,null,null,null,null,null,null,null,null,null,null,null,null,null,null,null,null,null,null,null,null,null,0,0,0,0,0,0,0,0,0,0,0,0,0,0,0,{"$f":"IF(BA22=0,0,IF(BA22=1,(IF((AK22+#REF!+AO22+AP22)=0,0,((AY22-(AQ22+AR22+AS22+AT22+AU22+AV22+AW22+AX22))/#REF!))),IF(BA22=0.75,(IF((AK22+#REF!+AO22+AP22)=0,0,((AY22-(AQ22+AR22+AS22+AT22+AU22+AV22+AW22+AX22))/#REF!)))*0.75,IF(BA22=0.5,(IF((AK22+#REF!+AO22+AP22)=0,0,((AY22-(AQ22+AR22+AS22+AT22+AU22+AV22+AW22+AX22))/#REF!)))*0.5,IF(BA22=0.25,(IF((AK22+#REF!+AO22+AP22)=0,0,((AY22-(AQ22+AR22+AS22+AT22+AU22+AV22+AW22+AX22))/#REF!)))*0.25)))))","v":0},null,{"$error":"#DIV/0!"}]
[null,"Янковская Т.А.","вед.бухгалтер",null,null,null,null,null,null,null,null,null,null,null,null,null,null,null,null,null,null,null,null,null,null,null,null,null,null,null,null,null,null,null,null,null,0,0,0,0,0,0,0,0,0,0,0,0,0,0,0,{"$f":"IF(BA23=0,0,IF(BA23=1,(IF((AK23+#REF!+AO23+AP23)=0,0,((AY23-(AQ23+AR23+AS23+AT23+AU23+AV23+AW23+AX23))/#REF!))),IF(BA23=0.75,(IF((AK23+#REF!+AO23+AP23)=0,0,((AY23-(AQ23+AR23+AS23+AT23+AU23+AV23+AW23+AX23))/#REF!)))*0.75,IF(BA23=0.5,(IF((AK23+#REF!+AO23+AP23)=0,0,((AY23-(AQ23+AR23+AS23+AT23+AU23+AV23+AW23+AX23))/#REF!)))*0.5,IF(BA23=0.25,(IF((AK23+#REF!+AO23+AP23)=0,0,((AY23-(AQ23+AR23+AS23+AT23+AU23+AV23+AW23+AX23))/#REF!)))*0.25)))))","v":0},null,{"$error":"#DIV/0!"}]
[null,"Южик И.С.","бухгалтер",null,null,null,null,null,null,null,null,null,null,null,null,null,null,null,null,null,null,null,null,null,null,null,null,null,null,null,null,null,null,null,null,null,0,0,0,0,0,0,0,0,0,0,0,0,0,0,0,{"$f":"IF(BA24=0,0,IF(BA24=1,(IF((AK24+#REF!+AO24+AP24)=0,0,((AY24-(AQ24+AR24+AS24+AT24+AU24+AV24+AW24+AX24))/#REF!))),IF(BA24=0.75,(IF((AK24+#REF!+AO24+AP24)=0,0,((AY24-(AQ24+AR24+AS24+AT24+AU24+AV24+AW24+AX24))/#REF!)))*0.75,IF(BA24=0.5,(IF((AK24+#REF!+AO24+AP24)=0,0,((AY24-(AQ24+AR24+AS24+AT24+AU24+AV24+AW24+AX24))/#REF!)))*0.5,IF(BA24=0.25,(IF((AK24+#REF!+AO24+AP24)=0,0,((AY24-(AQ24+AR24+AS24+AT24+AU24+AV24+AW24+AX24))/#REF!)))*0.25)))))","v":0},null,{"$error":"#DIV/0!"}]
[null,"Мизуло М.И.","зам.главного бухгалтера",null,null,null,null,null,null,null,null,null,null,null,null,null,null,null,null,null,null,null,null,null,null,null,null,null,null,null,null,null,null,null,null,null,0,0,0,0,0,0,0,0,0,0,0,0,0,0,0,{"$f":"IF(BA25=0,0,IF(BA25=1,(IF((AK25+#REF!+AO25+AP25)=0,0,((AY25-(AQ25+AR25+AS25+AT25+AU25+AV25+AW25+AX25))/#REF!))),IF(BA25=0.75,(IF((AK25+#REF!+AO25+AP25)=0,0,((AY25-(AQ25+AR25+AS25+AT25+AU25+AV25+AW25+AX25))/#REF!)))*0.75,IF(BA25=0.5,(IF((AK25+#REF!+AO25+AP25)=0,0,((AY25-(AQ25+AR25+AS25+AT25+AU25+AV25+AW25+AX25))/#REF!)))*0.5,IF(BA25=0.25,(IF((AK25+#REF!+AO25+AP25)=0,0,((AY25-(AQ25+AR25+AS25+AT25+AU25+AV25+AW25+AX25))/#REF!)))*0.25)))))","v":0},null,{"$error":"#DIV/0!"}]
[null,"Кузьмина А.В.","мастер",null,null,null,null,null,null,null,null,null,null,null,null,null,null,null,null,null,null,null,null,null,null,null,null,null,null,null,null,null,null,null,null,null,0,0,0,0,0,0,0,0,0,0,0,0,0,0,{"$f":"AK26+AN26+AO26+AP26+AQ26+AR26+AS26+AT26+AU26+AV26+AW26+AX26","v":0},{"$f":"IF(BA26=0,0,IF(BA26=1,(IF((AK26+#REF!+AO26+AP26)=0,0,((AY26-(AQ26+AR26+AS26+AT26+AU26+AV26+AW26+AX26))/#REF!))),IF(BA26=0.75,(IF((AK26+#REF!+AO26+AP26)=0,0,((AY26-(AQ26+AR26+AS26+AT26+AU26+AV26+AW26+AX26))/#REF!)))*0.75,IF(BA26=0.5,(IF((AK26+#REF!+AO26+AP26)=0,0,((AY26-(AQ26+AR26+AS26+AT26+AU26+AV26+AW26+AX26))/#REF!)))*0.5,IF(BA26=0.25,(IF((AK26+#REF!+AO26+AP26)=0,0,((AY26-(AQ26+AR26+AS26+AT26+AU26+AV26+AW26+AX26))/#REF!)))*0.25)))))","v":0},null,{"$f":"AY26/$AL$8","v":{"$error":"#DIV/0!"}}]
[null,"Веремей В.З.","мастер",null,null,null,null,null,null,null,null,null,null,null,null,null,null,null,null,null,null,null,null,null,null,null,null,null,null,null,null,null,null,null,null,null,0,0,0,0,0,0,0,0,0,0,0,0,0,0,0,{"$f":"IF(BA27=0,0,IF(BA27=1,(IF((AK27+#REF!+AO27+AP27)=0,0,((AY27-(AQ27+AR27+AS27+AT27+AU27+AV27+AW27+AX27))/#REF!))),IF(BA27=0.75,(IF((AK27+#REF!+AO27+AP27)=0,0,((AY27-(AQ27+AR27+AS27+AT27+AU27+AV27+AW27+AX27))/#REF!)))*0.75,IF(BA27=0.5,(IF((AK27+#REF!+AO27+AP27)=0,0,((AY27-(AQ27+AR27+AS27+AT27+AU27+AV27+AW27+AX27))/#REF!)))*0.5,IF(BA27=0.25,(IF((AK27+#REF!+AO27+AP27)=0,0,((AY27-(AQ27+AR27+AS27+AT27+AU27+AV27+AW27+AX27))/#REF!)))*0.25)))))","v":0},null,{"$error":"#DIV/0!"}]
[null,"Воротников В.В.","главный инженер",null,null,null,null,null,null,null,null,null,null,null,null,null,null,null,null,null,null,null,null,null,null,null,null,null,null,null,null,null,null,null,null,null,0,0,0,0,0,0,0,0,0,0,0,0,0,0,0,{"$f":"IF(BA28=0,0,IF(BA28=1,(IF((AK28+#REF!+AO28+AP28)=0,0,((AY28-(AQ28+AR28+AS28+AT28+AU28+AV28+AW28+AX28))/#REF!))),IF(BA28=0.75,(IF((AK28+#REF!+AO28+AP28)=0,0,((AY28-(AQ28+AR28+AS28+AT28+AU28+AV28+AW28+AX28))/#REF!)))*0.75,IF(BA28=0.5,(IF((AK28+#REF!+AO28+AP28)=0,0,((AY28-(AQ28+AR28+AS28+AT28+AU28+AV28+AW28+AX28))/#REF!)))*0.5,IF(BA28=0.25,(IF((AK28+#REF!+AO28+AP28)=0,0,((AY28-(AQ28+AR28+AS28+AT28+AU28+AV28+AW28+AX28))/#REF!)))*0.25)))))","v":0},null,{"$error":"#DIV/0!"}]
[null,"Катковский А.В.","прораб",null,null,null,null,null,null,null,null,null,null,null,null,null,null,null,null,null,null,null,null,null,null,null,null,null,null,null,null,null,null,null,null,null,0,0,0,0,0,0,0,0,0,0,0,0,0,0,0,{"$f":"IF(BA29=0,0,IF(BA29=1,(IF((AK29+#REF!+AO29+AP29)=0,0,((AY29-(AQ29+AR29+AS29+AT29+AU29+AV29+AW29+AX29))/#REF!))),IF(BA29=0.75,(IF((AK29+#REF!+AO29+AP29)=0,0,((AY29-(AQ29+AR29+AS29+AT29+AU29+AV29+AW29+AX29))/#REF!)))*0.75,IF(BA29=0.5,(IF((AK29+#REF!+AO29+AP29)=0,0,((AY29-(AQ29+AR29+AS29+AT29+AU29+AV29+AW29+AX29))/#REF!)))*0.5,IF(BA29=0.25,(IF((AK29+#REF!+AO29+AP29)=0,0,((AY29-(AQ29+AR29+AS29+AT29+AU29+AV29+AW29+AX29))/#REF!)))*0.25)))))","v":0},null,{"$error":"#DIV/0!"}]
[null,"Никитишина Л.С.","мастер",null,null,null,null,null,null,null,null,null,null,null,null,null,null,null,null,null,null,null,null,null,null,null,null,null,null,null,null,null,null,null,null,null,0,0,0,0,0,0,0,0,0,0,0,0,0,0,0,{"$f":"IF(BA30=0,0,IF(BA30=1,(IF((AK30+#REF!+AO30+AP30)=0,0,((AY30-(AQ30+AR30+AS30+AT30+AU30+AV30+AW30+AX30))/#REF!))),IF(BA30=0.75,(IF((AK30+#REF!+AO30+AP30)=0,0,((AY30-(AQ30+AR30+AS30+AT30+AU30+AV30+AW30+AX30))/#REF!)))*0.75,IF(BA30=0.5,(IF((AK30+#REF!+AO30+AP30)=0,0,((AY30-(AQ30+AR30+AS30+AT30+AU30+AV30+AW30+AX30))/#REF!)))*0.5,IF(BA30=0.25,(IF((AK30+#REF!+AO30+AP30)=0,0,((AY30-(AQ30+AR30+AS30+AT30+AU30+AV30+AW30+AX30))/#REF!)))*0.25)))))","v":0},null,{"$error":"#DIV/0!"}]
[null,"Велесюк Е.И.","инженер по гос.учету",null,null,null,null,null,null,null,null,null,null,null,null,null,null,null,null,null,null,null,null,null,null,null,null,null,null,null,null,null,null,null,null,null,0,0,0,0,0,0,0,0,0,0,0,0,0,0,0,{"$f":"IF(BA31=0,0,IF(BA31=1,(IF((AK31+#REF!+AO31+AP31)=0,0,((AY31-(AQ31+AR31+AS31+AT31+AU31+AV31+AW31+AX31))/#REF!))),IF(BA31=0.75,(IF((AK31+#REF!+AO31+AP31)=0,0,((AY31-(AQ31+AR31+AS31+AT31+AU31+AV31+AW31+AX31))/#REF!)))*0.75,IF(BA31=0.5,(IF((AK31+#REF!+AO31+AP31)=0,0,((AY31-(AQ31+AR31+AS31+AT31+AU31+AV31+AW31+AX31))/#REF!)))*0.5,IF(BA31=0.25,(IF((AK31+#REF!+AO31+AP31)=0,0,((AY31-(AQ31+AR31+AS31+AT31+AU31+AV31+AW31+AX31))/#REF!)))*0.25)))))","v":0},null,{"$error":"#DIV/0!"}]
[null,"Генюш П.К.","мастер",null,null,null,null,null,null,null,null,null,null,null,null,null,null,null,null,null,null,null,null,null,null,null,null,null,null,null,null,null,null,null,null,null,0,0,0,0,0,0,0,0,0,0,0,0,0,0,0,{"$f":"IF(BA32=0,0,IF(BA32=1,(IF((AK32+#REF!+AO32+AP32)=0,0,((AY32-(AQ32+AR32+AS32+AT32+AU32+AV32+AW32+AX32))/#REF!))),IF(BA32=0.75,(IF((AK32+#REF!+AO32+AP32)=0,0,((AY32-(AQ32+AR32+AS32+AT32+AU32+AV32+AW32+AX32))/#REF!)))*0.75,IF(BA32=0.5,(IF((AK32+#REF!+AO32+AP32)=0,0,((AY32-(AQ32+AR32+AS32+AT32+AU32+AV32+AW32+AX32))/#REF!)))*0.5,IF(BA32=0.25,(IF((AK32+#REF!+AO32+AP32)=0,0,((AY32-(AQ32+AR32+AS32+AT32+AU32+AV32+AW32+AX32))/#REF!)))*0.25)))))","v":0}]
[null,"Кондратович В.Ф.","мастер",null,null,null,null,null,null,null,null,null,null,null,null,null,null,null,null,null,null,null,null,null,null,null,null,null,null,null,null,null,null,null,null,null,0,0,0,0,0,0,0,0,0,0,0,0,0,0,0,{"$f":"IF(BA33=0,0,IF(BA33=1,(IF((AK33+#REF!+AO33+AP33)=0,0,((AY33-(AQ33+AR33+AS33+AT33+AU33+AV33+AW33+AX33))/#REF!))),IF(BA33=0.75,(IF((AK33+#REF!+AO33+AP33)=0,0,((AY33-(AQ33+AR33+AS33+AT33+AU33+AV33+AW33+AX33))/#REF!)))*0.75,IF(BA33=0.5,(IF((AK33+#REF!+AO33+AP33)=0,0,((AY33-(AQ33+AR33+AS33+AT33+AU33+AV33+AW33+AX33))/#REF!)))*0.5,IF(BA33=0.25,(IF((AK33+#REF!+AO33+AP33)=0,0,((AY33-(AQ33+AR33+AS33+AT33+AU33+AV33+AW33+AX33))/#REF!)))*0.25)))))","v":0},null,{"$error":"#DIV/0!"}]
[null,"Ахрамович А.А.","мастер",null,null,null,null,null,null,null,null,null,null,null,null,null,null,null,null,null,null,null,null,null,null,null,null,null,null,null,null,null,null,null,null,null,0,0,0,0,0,0,0,0,0,0,0,0,0,0,0,{"$f":"IF(BA34=0,0,IF(BA34=1,(IF((AK34+#REF!+AO34+AP34)=0,0,((AY34-(AQ34+AR34+AS34+AT34+AU34+AV34+AW34+AX34))/#REF!))),IF(BA34=0.75,(IF((AK34+#REF!+AO34+AP34)=0,0,((AY34-(AQ34+AR34+AS34+AT34+AU34+AV34+AW34+AX34))/#REF!)))*0.75,IF(BA34=0.5,(IF((AK34+#REF!+AO34+AP34)=0,0,((AY34-(AQ34+AR34+AS34+AT34+AU34+AV34+AW34+AX34))/#REF!)))*0.5,IF(BA34=0.25,(IF((AK34+#REF!+AO34+AP34)=0,0,((AY34-(AQ34+AR34+AS34+AT34+AU34+AV34+AW34+AX34))/#REF!)))*0.25)))))","v":0},null,{"$error":"#DIV/0!"}]
[null,"Левкевич М.В.","бухгалтер",null,null,null,null,null,null,null,null,null,null,null,null,null,null,null,null,null,null,null,null,null,null,null,null,null,null,null,null,null,null,null,null,null,0,0,0,0,0,0,0,0,0,0,0,0,0,0,0,{"$f":"IF(BA35=0,0,IF(BA35=1,(IF((AK35+#REF!+AO35+AP35)=0,0,((AY35-(AQ35+AR35+AS35+AT35+AU35+AV35+AW35+AX35))/#REF!))),IF(BA35=0.75,(IF((AK35+#REF!+AO35+AP35)=0,0,((AY35-(AQ35+AR35+AS35+AT35+AU35+AV35+AW35+AX35))/#REF!)))*0.75,IF(BA35=0.5,(IF((AK35+#REF!+AO35+AP35)=0,0,((AY35-(AQ35+AR35+AS35+AT35+AU35+AV35+AW35+AX35))/#REF!)))*0.5,IF(BA35=0.25,(IF((AK35+#REF!+AO35+AP35)=0,0,((AY35-(AQ35+AR35+AS35+AT35+AU35+AV35+AW35+AX35))/#REF!)))*0.25)))))","v":0},null,{"$error":"#DIV/0!"}]
[null,"ИТОГО",null,null,null,null,null,null,null,null,null,null,null,null,null,null,null,null,null,null,null,null,null,null,null,null,null,null,null,null,null,null,null,null,null,null,{"$f":"SUM(AK11:AK35)","v":0},0,0,0,0,0,0,0,0,0,0,0,0,0,0,{"$f":"SUM(AZ11:AZ35)","v":0},null,{"$f":"SUM(BC11:BC35)","v":0},{"$f":"SUM(BC11:BC35)","v":0}]
[]
[]
[]
[]
[]
[]
[]
[]
[]
[]
[null,null,"Табель составил                 ст.инспектор по кадрам     ________________  Э.В.Шеверенко"]
[null,null,null,null,null,null,"       (должность)                                      ( инициалы, фамилия)"]

{"sheet":"НОЯБРЬ 2020","index":1,"n_rows":130,"n_cols":49,"rows_kept":130,"cut":false,"hidden":false,"merged":[[0,2,0,3],[1,2,1,3],[2,2,2,3],[3,2,3,3],[4,2,4,3],[5,2,5,3],[12,2,12,3],[13,2,13,3],[14,2,14,3],[15,2,15,3],[16,2,16,3],[17,2,17,3],[6,2,6,3],[7,2,7,3],[8,2,8,3],[9,2,9,3],[10,2,10,3],[11,2,11,3],[26,2,26,3],[27,2,27,3],[28,2,28,3],[29,2,29,3],[30,2,30,3],[31,2,31,3],[18,2,18,3],[19,2,19,3],[20,2,20,3],[21,2,21,3],[24,2,24,3],[25,2,25,3],[38,2,38,3],[39,2,39,3],[40,2,40,3],[41,2,41,3],[42,2,42,3],[43,2,43,3],[32,2,32,3],[33,2,33,3],[34,2,34,3],[35,2,35,3],[36,2,36,3],[37,2,37,3],[50,2,50,3],[51,2,51,3],[52,2,52,3],[53,2,53,3],[54,2,54,3],[55,2,55,3],[44,2,44,3],[45,2,45,3],[46,2,46,3],[47,2,47,3],[48,2,48,3],[49,2,49,3],[62,2,62,3],[63,2,63,3],[64,2,64,3],[65,2,65,3],[66,2,66,3],[67,2,67,3],[56,2,56,3],[57,2,57,3],[58,2,58,3],[59,2,59,3],[60,2,60,3],[61,2,61,3],[74,2,74,3],[75,2,75,3],[76,2,76,3],[77,2,77,3],[78,2,78,3],[79,2,79,3],[68,2,68,3],[69,2,69,3],[70,2,70,3],[71,2,71,3],[72,2,72,3],[73,2,73,3],[90,2,90,3],[91,2,91,3],[92,2,92,3],[93,2,93,3],[94,2,94,3],[95,2,95,3],[80,2,80,3],[81,2,81,3],[84,2,84,3],[85,2,85,3],[86,2,86,3],[89,2,89,3],[102,2,102,3],[103,2,103,3],[104,2,104,3],[105,2,105,3],[106,2,106,3],[107,2,107,3],[96,2,96,3],[97,2,97,3],[98,2,98,3],[99,2,99,3],[100,2,100,3],[101,2,101,3],[114,2,114,3],[115,2,115,3],[116,2,116,3],[117,2,117,3],[118,2,118,3],[108,2,108,3],[109,2,109,3],[110,2,110,3],[111,2,111,3],[112,2,112,3],[113,2,113,3],[126,2,126,3],[127,2,127,3],[128,2,128,3],[120,2,120,3],[121,2,121,3],[122,2,122,3],[123,2,123,3],[124,2,124,3],[125,2,125,3]]}
["          ",null,null,null,1,2,3,4,5,6,7,8,9,10,11,12,13,14,15,16,17,18,19,20,21,22,23,24,25,26,27,28,29,30,31,"Трудовой отпуск (О)","отпуск в выходной день","всего отпуск","Отпуск по беременности и родам (Р)","Выходные в больничный","Больничный (Б)","всего больничный","Прочие неявки, разрешенные законом (Г)","С разрешения администрации (А)","Прогул (П)","Отпуск по уходу за ребенком (ОЖ)"]
["Болдачев Владимир Владимирович",null,null,null,null,null,null,null,null,null,null,null,null,null,null,null,null,null,null,null,null,null,null,"А",null,null,null,null,null,null,"А",null,null,null,null,{"$f":"COUNTIF(E2:AI2,\"о\")","v":0},{"$f":"COUNTIF(E2:AI2,\"ов\")","v":0},{"$f":"AJ2+AK2","v":0},{"$f":"COUNTIF(E2:AI2,\"р\")","v":0},{"$f":"COUNTIF(E2:AI2,\"бв\")","v":0},{"$f":"COUNTIF(E2:AI2,\"б\")","v":0},{"$f":"SUM(AN2:AO2)","v":0},{"$f":"COUNTIF(E2:AI2,\"г\")","v":0},{"$f":"COUNTIF(E2:AI2,\"а\")","v":2},{"$f":"COUNTIF(E2:AI2,\"п\")","v":0},{"$f":"COUNTIF(E2:AI2,\"ож\")","v":0},null,"ФИО","Богомолов Александр Ник"]
["Богомолов Александр Ник",null,null,null,null,null,"Б",null,null,null,null,null,null,null,null,null,null,null,null,null,null,null,null,null,null,null,"А",null,null,null,"А",null,null,null,null,0,{"$f":"COUNTIF(E3:AI3,\"ов\")","v":0},{"$f":"AJ3+AK3","v":0},0,0,1,{"$f":"SUM(AN3:AO3)","v":1},0,2,0,0,null,"ДАТА",3]
["Воротников Владимир Владимирович",null,null,null,null,null,null,null,null,null,null,null,null,null,null,null,null,null,null,null,null,null,null,null,null,null,null,null,null,null,null,null,null,null,null,0,0,0,0,0,0,0,0,0,0,0,null,"ИТОГ"]
["Велесюк Елена Игоревна",null,null,null,null,null,null,null,null,null,null,null,null,null,null,null,null,null,null,null,null,null,null,null,null,null,null,null,null,null,null,null,null,null,null,0,0,0,0,0,0,0,0,0,0,0]
["Веремей Валентина Зигмунд.",null,null,null,null,null,null,null,null,null,null,null,null,null,null,null,null,null,null,null,null,"А",null,null,null,null,null,null,null,null,null,null,null,null,null,0,0,0,0,0,0,0,0,1,0,0]
["Гурский Дмитрий Викторович",null,null,null,null,null,null,null,null,null,null,null,null,null,null,null,null,null,null,null,null,null,null,null,null,null,null,null,null,null,null,null,null,null,null,0,0,0,0,0,0,0,0,0,0,0]
["Горбач Татьяна Вениславовна",null,null,null,null,null,null,null,null,null,null,null,null,null,null,null,null,null,null,null,null,null,null,null,null,null,"А",null,null,null,"А",null,null,null,null,0,0,0,0,0,0,0,0,2,0,0]
["Савицкая Анастасия Валерьевна",null,null,null,null,null,null,null,null,null,null,null,null,null,null,null,null,null,null,null,null,null,null,"А",null,null,null,"А",null,null,null,null,null,null,null,0,0,0,0,0,0,0,0,2,0,0]
["Катковский Андрей Валентинович",null,null,null,null,null,null,null,null,null,null,null,null,null,null,null,null,null,null,null,null,null,null,"А",null,null,null,null,null,null,null,null,null,null,null,0,0,0,0,0,0,0,0,1,0,0]
["Левкевич Марина Владимировна",null,null,null,null,null,null,null,null,null,null,null,null,null,null,null,null,null,null,null,null,null,null,null,null,null,null,null,null,null,null,null,null,null,null,0,0,0,0,0,0,0,0,0,0,0]
["Мамчиц Елена Петровна",null,null,null,null,null,null,null,null,null,null,null,null,null,null,"А",null,null,null,null,null,null,null,"А",null,null,null,null,null,null,null,null,null,null,null,0,0,0,0,0,0,0,0,2,0,0]
["Мизуло Марина Ивановна",null,null,null,null,null,null,null,null,null,null,null,null,null,null,null,null,null,null,null,null,null,"А","А",null,null,null,null,null,null,null,null,null,null,null,0,0,0,0,0,0,0,0,2,0,0]
["Никитишина Людмила Сергеевна",null,null,null,null,null,null,null,null,null,null,null,null,null,null,null,null,null,null,null,null,null,null,null,null,null,null,null,null,null,null,null,null,null,null,0,0,0,0,0,0,0,0,0,0,0]
["Михаловская Анастасия Викторовна",null,null,null,null,null,null,null,null,null,null,null,null,null,null,"А",null,null,null,null,null,null,null,null,null,null,null,null,null,null,null,null,null,"А",null,0,0,0,0,0,0,0,0,2,0,0]
["Страшинская Ирина Петровн.",null,null,null,null,"Б","Б","Б","Б","Б","БВ","БВ","Б","Б","Б","Б","Б","БВ","БВ","Б","Б","Б","Б","Б","БВ","БВ","Б","А","А","О","О","ОВ","ОВ",null,null,2,2,4,0,6,16,22,0,2,0,0]
["Спиридович Иосиф Владимирович",null,null,null,null,null,null,null,null,null,null,null,null,null,null,null,"А",null,null,null,null,null,null,null,null,null,null,null,null,"А",null,null,null,null,null,0,0,0,0,0,0,0,0,2,0,0]
["Шкурдюк Александр Александрович",null,null,null,null,null,null,null,null,null,null,null,null,null,null,null,null,null,null,null,null,null,null,"А",null,null,null,null,null,null,"А",null,null,null,null,0,0,0,0,0,0,0,0,2,0,0]
["Шапель Елена Ивановна",null,null,null,null,null,null,null,null,null,null,null,null,null,null,null,"А",null,null,null,null,null,"А",null,null,null,null,null,null,null,null,null,null,null,null,0,0,0,0,0,0,0,0,2,0,0]
["Шеверенко Элона Владимировна",null,null,null,null,null,null,null,null,null,null,null,null,null,null,null,null,null,null,null,null,"А","А",null,null,null,null,null,null,null,null,null,null,null,null,0,0,0,0,0,0,0,0,2,0,0]
["Янковская Татьяна Анатольевна",null,null,null,null,null,null,null,null,"Б","БВ","БВ","Б","Б","Б",null,null,null,null,null,null,null,null,null,null,null,null,null,"А",null,"А",null,null,null,null,0,0,0,0,2,4,6,0,2,0,0]
["Южик Инна Сергеевна",null,null,null,null,null,null,null,null,null,null,null,null,null,null,null,null,null,null,null,null,null,null,null,null,null,null,null,"А","А",null,null,null,null,null,0,0,0,0,0,0,0,0,2,0,0]
["Итого человек",null,null,null,null,null,null,null,null,null,null,null,null,null,null,null,{"$f":"COUNTIF(Q2:Q22,\"а\")","v":2},null,null,null,null,null,null,null,null,null,null,null,null,null,null,null,null,null,null,{"$f":"COUNTIF(AJ2:AJ22,\">0\")","v":1},{"$f":"COUNTIF(AK2:AK22,\">0\")","v":1},1,0,2,3,3,0,{"$f":"COUNTIF(AR2:AR22,\">0\")","v":16},{"$f":"COUNTIF(AS2:AS22,\">0\")","v":0},0]
["Итого лдней",null,null,null,null,null,null,null,null,null,null,null,null,null,null,null,null,null,null,null,null,null,null,null,null,null,null,null,null,null,null,null,null,null,null,{"$f":"SUM(AJ2:AJ22)","v":2},{"$f":"SUM(AK2:AK22)","v":2},{"$f":"SUM(AL2:AL22)","v":4},{"$f":"SUM(AM2:AM22)","v":0},8,21,29,0,30,0,0]
["Андрица Казимир Петрович",null,null,null,"О","О","О","О","О","О","ОВ","ОВ",null,null,null,null,null,null,null,null,null,null,null,null,null,null,null,null,null,null,null,null,null,null,null,{"$f":"COUNTIF(E25:AI25,\"о\")","v":6},2,8,{"$f":"COUNTIF(E25:AI25,\"р\")","v":0},{"$f":"COUNTIF(E25:AI25,\"бв\")","v":0},{"$f":"COUNTIF(E25:AI25,\"б\")","v":0},0,{"$f":"COUNTIF(E25:AI25,\"г\")","v":0},{"$f":"COUNTIF(E25:AI25,\"а\")","v":0},{"$f":"COUNTIF(E25:AI25,\"п\")","v":0},{"$f":"COUNTIF(E25:AI25,\"ож\")","v":0}]
["Бородин Валерий Владимирович",null,null,null,null,null,null,null,null,null,null,null,null,null,null,null,null,null,null,null,null,null,null,null,null,null,null,null,null,null,null,null,null,null,null,0,0,0,0,0,0,0,0,0,0,0]
["Бутор Михаил Евгеньевич",null,null,null,null,null,null,null,null,null,null,null,null,null,null,null,"А",null,null,"А",null,null,null,null,null,null,null,null,null,null,null,null,null,null,null,0,0,0,0,0,0,0,0,2,0,0]
["Буйновский Леонид Францевич",null,null,null,null,null,null,null,null,null,null,null,null,null,null,"А","А",null,null,null,null,null,null,null,null,null,null,null,null,null,null,null,null,null,null,0,0,0,0,0,0,0,0,2,0,0]
["Бушмар Елена Леонардовна",null,null,null,null,null,null,null,null,null,null,null,null,null,null,null,null,null,null,null,null,null,null,null,null,null,null,null,null,null,null,null,null,null,null,0,0,0,0,0,0,0,0,0,0,0]
["Буйновский Леонид Францевич",null,null,null,null,null,null,null,null,null,null,null,null,null,null,null,null,null,null,null,null,null,null,null,null,null,null,null,null,null,null,null,null,null,null,0,0,0,0,0,0,0,0,0,0,0]
["Высоцкий Владимир Тадеушевич",null,null,null,null,null,null,null,null,null,null,null,null,null,null,null,"А",null,null,"А",null,null,null,"А",null,null,null,null,null,null,null,null,null,null,null,0,0,0,0,0,0,0,0,3,0,0]
["Вешторт Марина Николаевна",null,null,null,null,null,null,null,null,null,null,null,null,null,null,null,null,null,null,null,null,null,null,null,null,null,null,null,null,null,null,null,null,null,null,0,0,0,0,0,0,0,0,0,0,0]
["Войткевич Станислав Станиславович",null,null,null,null,null,null,null,null,null,null,null,null,null,null,null,"А",null,null,null,null,null,"А",null,null,null,null,null,null,null,null,null,null,null,null,0,0,0,0,0,0,0,0,2,0,0]
["Войтко Алекс. Анатольевич",null,null,null,null,null,null,null,null,null,null,null,null,null,null,null,null,null,null,null,null,null,null,null,null,null,null,null,null,"А",null,null,null,null,null,0,0,0,0,0,0,0,0,1,0,0]
["Войтюш Чеслав Станиславов.",null,null,null,null,null,null,null,null,null,null,null,null,null,null,null,null,null,null,null,null,null,null,null,null,null,null,null,null,null,null,null,null,null,null,0,0,0,0,0,0,0,0,0,0,0]
["Гугневич Иван Казимирович",null,null,null,"Б","Б","Б",null,null,null,null,null,null,null,null,null,null,null,null,null,null,null,null,"А",null,null,"Б","Б","Б","Б","Б","БВ","БВ","Б",null,0,0,0,0,2,9,11,0,1,0,0]
["Гецевич Казимир Казимирович",null,null,null,null,null,null,null,null,null,null,null,null,null,null,null,"А",null,null,null,null,null,null,"А",null,null,null,null,null,null,null,null,null,null,null,0,0,0,0,0,0,0,0,2,0,0]
["Гайдукевич Анатолий Николаевич",null,null,null,null,null,null,null,null,null,null,null,null,null,null,null,null,null,null,null,null,null,null,null,null,null,null,null,null,null,null,null,null,null,null,0,0,0,0,0,0,0,0,0,0,0]
["Гришкойть Виктор Петрович",null,null,null,null,null,null,null,null,null,null,null,"А",null,"А",null,null,null,null,null,null,null,null,null,null,null,null,null,null,null,null,null,null,null,null,0,0,0,0,0,0,0,0,2,0,0]
["Гришкойть Янина Ивановна",null,null,null,null,null,null,null,null,null,null,null,null,null,null,null,null,null,null,null,null,null,null,null,null,null,null,null,"А",null,"А",null,null,null,null,0,0,0,0,0,0,0,0,2,0,0]
["Дурейко Виктор Вацлавович",null,null,null,null,null,null,null,null,null,null,null,null,null,null,null,null,null,null,null,null,null,"А","А",null,null,null,null,null,null,null,null,null,null,null,0,0,0,0,0,0,0,0,2,0,0]
["Дурейко Максим Владимирович",null,null,null,"О","О","О",null,null,null,null,null,null,null,null,null,null,null,null,null,null,null,"А","А",null,null,null,null,null,null,null,null,null,null,null,3,0,3,0,0,0,0,0,2,0,0]
["Дудко Сергей Александрович",null,null,null,null,null,null,null,null,null,null,null,null,null,null,null,null,null,null,null,null,null,null,"А",null,null,null,null,null,null,null,null,null,"А",null,0,0,0,0,0,0,0,0,2,0,0]
["Ежевский Павел Анатольевич",null,null,null,null,null,null,null,null,null,null,null,null,null,null,null,null,null,null,null,null,"А",null,null,null,null,null,null,null,null,null,null,null,null,null,0,0,0,0,0,0,0,0,1,0,0]
["Жданюк Вячеслав Вячесл.",null,null,null,null,null,null,null,null,null,null,null,null,null,null,null,null,null,null,null,null,null,null,null,null,null,null,null,null,null,null,null,null,null,null,0,0,0,0,0,0,0,0,0,0,0]
["Жданюк Сергей Николаевич",null,null,null,null,null,null,null,null,null,null,null,null,null,null,null,null,null,null,null,null,null,null,"А",null,null,null,null,null,null,null,null,null,null,null,0,0,0,0,0,0,0,0,1,0,0]
["Залесский Александр Анат.",null,null,null,null,null,null,null,null,null,null,null,null,null,null,null,null,null,null,null,null,null,null,null,null,null,null,null,null,null,null,null,null,null,null,0,0,0,0,0,0,0,0,0,0,0]
["Залесский Владимир Вас.",null,null,null,null,null,null,null,null,null,null,null,null,null,null,null,null,null,null,null,null,null,null,null,null,null,null,null,null,"А","А",null,null,null,null,0,0,0,0,0,0,0,0,2,0,0]
["Илькевич Олег Тимофеевич",null,null,null,null,null,null,null,null,null,null,null,null,null,null,"А","А",null,null,null,null,null,null,null,null,null,"Б","Б","Б","Б","Б","БВ","БВ","Б",null,0,0,0,0,2,6,8,0,2,0,0]
["Каминский Виктор Петрович",null,null,null,"О","О","О","О",null,null,null,null,null,null,null,null,null,null,null,null,null,null,null,"А",null,null,"А",null,null,null,null,null,null,null,null,4,0,4,0,0,0,0,0,2,0,0]
["Коваленок Мария Тадеушевна",null,null,null,null,null,null,null,null,null,null,null,null,null,null,null,null,null,null,"А",null,null,null,"А",null,null,null,null,null,null,null,null,null,null,null,0,0,0,0,0,0,0,0,2,0,0]
["Козел Дмитрий Тадеушевич",null,null,null,null,null,null,null,null,null,null,null,null,null,null,null,"А",null,null,null,null,null,null,null,null,null,"А",null,null,null,null,null,null,null,null,0,0,0,0,0,0,0,0,2,0,0]
["Кабак Ольга Сергеевна",null,null,null,null,null,null,null,null,null,null,null,null,null,null,null,null,null,null,"А",null,null,null,"А",null,null,null,null,null,null,null,null,null,null,null,0,0,0,0,0,0,0,0,2,0,0]
["Кохановский Павел Зенонович",null,null,null,null,null,null,null,null,null,null,null,null,"А",null,null,null,null,null,null,null,null,null,"А",null,null,null,null,null,null,null,null,null,null,null,0,0,0,0,0,0,0,0,2,0,0]
["Крот Тадеуш Антонович",null,null,null,"О","О","О","О","О","О","ОВ","ОВ","О","О","О","О","О","ОВ","ОВ","О","О","О","О","О",null,null,"А","А",null,null,null,null,null,null,null,16,4,20,0,0,0,0,0,2,0,0]
["Крот Петр Александрович",null,null,null,null,null,null,null,null,null,null,null,null,null,null,null,"А",null,null,null,null,null,null,"А",null,null,null,null,null,null,null,null,null,null,null,0,0,0,0,0,0,0,0,2,0,0]
["Кейдо Франц Иванович",null,null,null,null,null,null,null,null,null,null,null,null,null,null,null,null,null,null,null,null,null,null,null,null,null,null,"А","А",null,null,null,null,null,null,0,0,0,0,0,0,0,0,2,0,0]
["Кохановский Петр Евгеньев.",null,null,null,null,null,null,null,null,null,null,null,null,null,null,null,null,null,null,null,"А","А",null,null,null,null,null,null,null,null,null,null,null,null,null,0,0,0,0,0,0,0,0,2,0,0]
["Кунавич Владимир Леонидович",null,null,null,null,null,null,null,null,null,null,null,null,null,null,null,null,null,null,null,null,null,null,null,null,null,null,null,null,null,null,null,null,null,null,0,0,0,0,0,0,0,0,0,0,0]
["Леонович Анатолий Анатольевич",null,null,null,null,null,null,null,null,null,null,null,null,null,null,null,null,null,null,null,null,null,null,null,null,null,null,null,null,null,null,null,null,null,null,0,0,0,0,0,0,0,0,0,0,0]
["Легень Иван Владимирович",null,null,null,null,null,null,null,null,null,null,null,null,null,null,null,null,null,null,null,null,null,null,null,null,null,null,null,null,null,null,null,null,"А",null,0,0,0,0,0,0,0,0,1,0,0]
["Лясковский Михаил Михайлович",null,null,null,null,null,null,null,null,"О","ОВ","ОВ","О","О","О","О","О","ОВ","ОВ","О","О","О","О","О","ОВ","ОВ","О","О","О","О","О","ОВ","ОВ","О",null,17,8,25,0,0,0,0,0,0,0,0]
["Лось Анна Петровна",null,null,null,null,null,null,null,null,null,null,null,null,null,null,null,null,null,null,null,null,null,null,null,null,null,"А",null,null,null,"А",null,null,null,null,0,0,0,0,0,0,0,0,2,0,0]
["Макей Иван Иосифович",null,null,null,null,"А",null,null,null,null,null,null,null,null,null,null,null,null,null,null,null,"А",null,"О","ОВ","ОВ","О","О","О","О","О","ОВ","ОВ","О",null,7,4,11,0,0,0,0,0,2,0,0]
["Матюлько  Алексей Чеславович",null,null,null,"О","О","О","О","О","О","ОВ","ОВ","О","О","О","О","О","ОВ","ОВ","А",null,null,null,"А",null,null,null,null,null,null,null,null,null,null,null,11,4,15,0,0,0,0,0,2,0,0]
["Мацкевич Аркадий Петрович",null,null,null,null,null,null,null,null,null,null,null,null,null,null,null,null,null,null,null,null,null,null,"А",null,null,null,null,"А",null,null,null,null,null,null,0,0,0,0,0,0,0,0,2,0,0]
["Мусский Виктор Сергеевич",null,null,null,null,null,null,null,null,null,null,null,null,null,null,null,"А",null,null,null,null,null,null,"А",null,null,null,null,null,null,null,null,null,null,null,0,{"$f":"COUNTIF(E67:AI67,\"ов\")","v":0},{"$f":"AJ67+AK67","v":0},0,0,0,0,0,2,0,0]
["нагродская ирина Степановна",null,null,null,null,null,null,null,null,null,null,null,null,null,null,null,null,null,null,null,null,null,null,null,null,null,null,null,null,null,null,null,null,null,null,0,0,0,0,0,0,{"$f":"SUM(AN68:AO68)","v":0},0,0,0,0]
["Недопекин Юрий Евгеньевич",null,null,null,null,null,null,null,null,null,null,null,null,null,null,"А","А",null,null,null,null,null,null,null,null,null,null,null,null,null,null,null,null,null,null,0,0,0,0,0,0,0,0,2,0,0]
["Островский Дмитрий Леонидович",null,null,null,null,null,null,null,null,null,null,null,null,null,null,null,null,null,null,"А",null,null,null,"А",null,null,null,null,null,null,null,null,null,null,null,0,0,0,0,0,0,0,0,2,0,0]
["Путырский Вл. Викторович",null,null,null,null,null,null,null,null,null,null,null,"А",null,null,null,"А",null,null,null,null,null,null,null,null,null,null,null,null,null,null,null,null,null,null,0,0,0,0,0,0,0,0,2,0,0]
["Рубан Константин Петрович",null,null,null,null,null,null,null,null,null,null,null,null,null,null,null,null,null,null,null,null,null,null,null,null,null,null,null,null,null,"А",null,null,"А",null,0,0,0,0,0,0,0,0,2,0,0]
["Снарский Андрей Генрихович",null,null,null,null,null,null,null,null,null,null,null,null,null,null,null,null,null,null,null,null,null,null,"А",null,null,null,null,null,null,"А",null,null,null,null,0,0,0,0,0,0,0,0,2,0,0]
["Стурлис Олег Генрихович",null,null,null,null,null,null,null,null,null,null,null,null,null,null,null,null,null,null,"А",null,null,null,null,null,null,null,null,null,null,null,null,null,null,null,0,0,0,0,0,0,0,0,1,0,0]
["Стурлис Генрих Степанович",null,null,null,null,null,null,null,null,null,null,null,null,null,null,null,null,null,null,null,null,null,null,null,null,null,null,null,null,null,null,null,null,null,null,0,0,0,0,0,0,0,0,0,0,0]
["Сурвило Виктор Брониславович",null,null,null,null,null,null,null,"О","О","ОВ","ОВ","О","О","О","О","О","ОВ","ОВ","О","О","О","О","О","ОВ","ОВ","О","О","О","О","О","ОВ","ОВ","О",null,18,8,26,0,0,0,0,0,0,0,0]
["Скаскевич Николай Евгеньевич",null,null,null,null,null,null,null,null,null,null,null,null,null,null,null,null,null,null,null,null,null,null,null,null,null,null,null,null,null,null,null,null,null,null,0,0,0,0,0,0,0,0,0,0,0]
["Урбанович Владимир Владимирович",null,null,null,null,null,null,null,null,null,null,null,null,null,null,null,"А",null,null,null,null,null,null,null,null,null,null,null,null,null,"А",null,null,null,null,0,0,0,0,0,0,0,0,2,0,0]
["Хуснутдинов Анатолий Саматович",null,null,null,null,null,null,null,null,null,null,null,null,null,null,"А","А",null,null,null,null,null,null,null,null,null,null,null,null,null,null,null,null,null,null,0,0,0,0,0,0,0,0,2,0,0]
["Филиппов Андрей Степанов.",null,null,null,null,null,null,null,null,null,null,null,null,null,null,null,null,null,null,null,null,null,null,null,null,null,null,null,null,null,"А",null,null,null,null,0,0,0,0,0,0,0,0,1,0,0]
["Томашевский Василий Александрович",null,null,null,null,null,null,null,null,null,null,null,null,null,null,"А","А",null,null,null,null,null,null,null,null,null,null,null,null,null,null,null,null,null,null,0,0,0,0,0,0,0,0,2,0,0]
["Шурпик Игорь Иванович",null,null,null,null,"А",null,null,null,null,null,null,null,null,null,null,null,null,null,null,null,null,null,null,null,null,null,null,null,null,null,null,null,null,null,0,0,0,0,0,0,0,0,1,0,0]
["Итого человек",null,null,null,null,null,null,null,null,null,null,null,null,null,null,null,{"$f":"COUNTIF(Q25:Q82,\"а\")","v":14},null,null,null,null,null,null,null,null,null,null,null,null,null,null,null,null,null,null,{"$f":"COUNTIF(AJ25:AJ82,\">0\")","v":8},6,8,0,2,2,2,0,42,0,0]
["Итого дней",null,null,null,null,null,null,null,null,null,null,null,null,null,null,null,null,null,null,null,null,null,null,null,null,null,null,null,null,null,null,null,null,null,null,{"$f":"SUM(AJ25:AJ82)","v":82},30,112,0,4,15,19,0,77,0,0]
["Ахрамович Андрей Андреевич",null,null,null,null,null,null,null,null,null,null,null,null,null,null,null,null,null,null,null,null,null,null,null,null,null,null,null,"А",null,null,null,null,"А",null,{"$f":"COUNTIF(E85:AI85,\"о\")","v":0},0,{"$f":"AJ85+AK85","v":0},{"$f":"COUNTIF(E85:AI85,\"р\")","v":0},{"$f":"COUNTIF(E85:AI85,\"бв\")","v":0},{"$f":"COUNTIF(E85:AI85,\"б\")","v":0},{"$f":"SUM(AN85:AO85)","v":0},{"$f":"COUNTIF(E85:AI85,\"г\")","v":0},{"$f":"COUNTIF(E85:AI85,\"а\")","v":2},{"$f":"COUNTIF(E85:AI85,\"п\")","v":0},{"$f":"COUNTIF(E85:AI85,\"ож\")","v":0}]
["Дебесь Виктор Вацлавович",null,null,null,null,null,null,null,null,null,null,null,null,null,null,null,null,null,null,null,null,null,null,null,null,null,null,null,null,"А","А",null,null,null,null,{"$f":"COUNTIF(E86:AI86,\"о\")","v":0},0,{"$f":"AJ86+AK86","v":0},{"$f":"COUNTIF(E86:AI86,\"р\")","v":0},{"$f":"COUNTIF(E86:AI86,\"бв\")","v":0},{"$f":"COUNTIF(E86:AI86,\"б\")","v":0},{"$f":"SUM(AN86:AO86)","v":0},{"$f":"COUNTIF(E86:AI86,\"г\")","v":0},{"$f":"COUNTIF(E86:AI86,\"а\")","v":2},{"$f":"COUNTIF(E86:AI86,\"п\")","v":0},{"$f":"COUNTIF(E86:AI86,\"ож\")","v":0}]
["Кондратович Вацлав Францевич",null,null,null,null,null,null,null,null,null,null,null,null,null,null,null,"О","ОВ","ОВ","О","О","О","О","О","ОВ","ОВ","О","О","О","О","О","ОВ","ОВ","О",null,{"$f":"COUNTIF(E87:AI87,\"о\")","v":12},6,18,{"$f":"COUNTIF(E87:AI87,\"р\")","v":0},{"$f":"COUNTIF(E87:AI87,\"бв\")","v":0},{"$f":"COUNTIF(E87:AI87,\"б\")","v":0},{"$f":"SUM(AN87:AO87)","v":0},{"$f":"COUNTIF(E87:AI87,\"г\")","v":0},{"$f":"COUNTIF(E87:AI87,\"а\")","v":0},{"$f":"COUNTIF(E87:AI87,\"п\")","v":0},{"$f":"COUNTIF(E87:AI87,\"ож\")","v":0}]
["Итого человек",null,null,null,null,null,null,null,null,null,null,null,null,null,null,null,{"$f":"COUNTIF(Q85:Q87,\"а\")","v":0},null,null,null,null,null,null,null,null,null,null,null,null,null,null,null,null,null,null,{"$f":"COUNTIF(AJ85:AJ87,\">0\")","v":1},1,1,0,0,0,0,0,2,0,0]
["Итого дней",null,null,null,null,null,null,null,null,null,null,null,null,null,null,null,null,null,null,null,null,null,null,null,null,null,null,null,null,null,null,null,null,null,null,{"$f":"SUM(AJ85:AJ87)","v":12},6,18,0,0,0,0,0,4,0,0]
["Адашкевич Вадим Анатольевич",null,null,null,null,null,null,null,null,null,null,null,null,null,null,null,null,null,null,null,null,null,null,null,null,null,null,null,null,null,"А",null,null,"А",null,{"$f":"COUNTIF(E90:AI90,\"о\")","v":0},0,{"$f":"AJ90++AK90","v":0},{"$f":"COUNTIF(E90:AI90,\"р\")","v":0},{"$f":"COUNTIF(E90:AI90,\"бв\")","v":0},{"$f":"COUNTIF(E90:AI90,\"б\")","v":0},0,{"$f":"COUNTIF(E90:AI90,\"г\")","v":0},{"$f":"COUNTIF(E90:AI90,\"а\")","v":2},{"$f":"COUNTIF(E90:AI90,\"п\")","v":0},{"$f":"COUNTIF(E90:AI90,\"ож\")","v":0}]
["Андриевский Михаил Зигмундович",null,null,null,null,null,null,null,null,null,null,null,null,null,null,null,null,null,null,null,null,null,null,null,null,null,null,null,null,null,null,null,null,null,null,0,0,{"$f":"AJ91++AK91","v":0},0,0,0,0,0,0,0,0]
["Баровский Александр Анатольевич",null,null,null,null,null,null,null,null,null,null,null,null,null,null,null,null,null,null,null,null,null,null,null,null,null,null,null,null,"О","О","ОВ","ОВ","О",null,3,2,5,0,0,0,0,0,0,0,0]
["Барташевич Сергей Константинович",null,null,null,null,null,null,null,null,null,null,null,null,null,null,null,null,null,null,null,null,null,null,null,null,null,null,null,null,null,null,null,null,null,null,0,0,0,0,0,0,0,0,0,0,0]
["Гаврилович Александр Владимирович",null,null,null,null,null,null,null,null,null,null,null,null,null,null,"А","А",null,null,null,null,null,null,null,null,null,null,"А",null,null,null,null,null,null,null,0,0,0,0,0,0,0,0,3,0,0]
["Гриво Валерий Михайлович",null,null,null,null,null,null,null,null,null,null,null,null,null,null,null,null,null,null,null,null,null,null,"А",null,null,"А",null,null,"О","О","ОВ","ОВ","О",null,3,2,5,0,0,0,0,0,2,0,0]
["Жданович Владислав Антонович",null,null,null,null,null,null,null,null,null,null,null,null,null,null,null,null,null,null,null,null,null,null,"А",null,null,null,null,null,null,"А",null,null,null,null,0,0,0,0,0,0,0,0,2,0,0]
["Жданович Светлана Евгеньевна",null,null,null,null,null,null,null,null,null,null,null,null,null,null,null,"А",null,null,null,"А",null,null,null,null,null,"О","О","О","О","О","ОВ","ОВ","О",null,6,2,8,0,0,0,0,0,2,0,0]
["Завадский Виктор Казимирович",null,null,null,null,null,null,null,null,null,null,null,null,null,null,null,null,null,null,null,null,null,null,"А",null,null,"А",null,null,null,null,null,null,null,null,0,0,0,0,0,0,0,0,2,0,0]
["Крутько Николай Иосифович",null,null,null,null,null,null,null,null,null,null,null,null,null,null,"А","А",null,null,null,null,null,null,null,null,null,null,null,null,null,null,null,null,null,null,0,0,0,0,0,0,0,0,2,0,0]
["Косяк Александр Михайлович",null,null,null,null,null,null,null,null,null,null,null,null,null,null,null,null,null,null,"О","О","О","О","О","ОВ","ОВ","О","О","О","О","О","ОВ","ОВ","О",null,11,4,15,0,0,0,0,0,0,0,0]
["Курпицкий Станислав Амброжьевич",null,null,null,"О","О","О","О","О","О","ОВ","ОВ","О",null,"Б","Б","Б","БВ","БВ","Б","Б","Б","Б","Б",null,null,"А",null,null,null,null,null,null,null,null,7,2,9,0,2,8,10,0,1,0,0]
["Логвиненко Игорь Анатольевич",null,null,null,"О","О","О","О","О","О","ОВ","ОВ","О","О","О","О",null,null,null,null,null,null,null,null,null,null,null,null,null,null,null,null,null,null,null,10,2,12,0,0,0,0,0,0,0,0]
["Лакутиевский Руслан Иосифович",null,null,null,null,null,null,null,null,null,null,null,null,null,null,null,null,null,null,"О","О","О","О","О","ОВ","ОВ","О","О","О","О","О","ОВ","ОВ","О",null,11,4,15,0,0,0,0,0,0,0,0]
["Лобейко Александра Брониславовна",null,null,null,null,null,null,null,null,null,null,null,null,null,null,null,null,null,null,"А",null,null,null,"А",null,null,null,null,null,null,null,null,null,null,null,0,0,0,0,0,0,0,0,2,0,0]
["Логвиненко Анатолий Яковлевич",null,null,null,null,null,null,null,null,null,null,null,null,null,null,null,null,null,null,null,null,"А","А",null,null,null,null,null,null,null,null,null,null,null,null,0,0,0,0,0,0,0,0,2,0,0]
["Мухо Виктор Феликсович",null,null,null,null,null,null,null,null,null,null,null,null,null,null,"А","А",null,null,null,null,null,null,null,null,null,null,null,null,null,null,null,null,null,null,0,0,0,0,0,0,0,0,2,0,0]
["Малиновский Валерий Владимирович",null,null,null,null,null,null,null,null,null,null,null,null,null,null,null,null,null,null,"А","А",null,null,null,null,null,null,null,null,null,null,null,null,null,null,0,0,0,0,0,0,0,0,2,0,0]
["Науменко Александр Иванович",null,null,null,null,null,null,null,null,null,null,null,null,null,null,null,null,null,null,null,null,null,null,"А",null,null,null,null,null,null,"А",null,null,null,null,0,0,0,0,0,0,0,0,2,0,0]
["Осинский Александр Марьянович",null,null,null,null,null,null,null,null,null,null,null,"О","О","О","О","О","ОВ","ОВ","О","О","О","О","О","О","О","О","О","О","О","О","ОВ","ОВ","О",null,18,4,22,0,0,0,0,0,0,0,0]
["Подгайский Михаил Иванович",null,null,null,null,null,null,null,null,null,null,null,null,null,null,null,null,null,null,null,null,null,null,null,null,null,null,null,null,null,null,null,null,null,null,0,0,0,0,0,0,0,0,0,0,0]
["Роман Ирина Владиславовна",null,null,null,null,null,null,null,null,null,null,null,null,null,null,null,null,null,null,null,null,null,null,null,null,null,null,null,null,null,null,null,null,null,null,0,0,0,0,0,0,0,0,0,0,0]
["Стаселович Генадий Иванович",null,null,null,null,null,null,null,null,null,null,null,null,null,null,null,null,null,null,null,null,null,null,null,null,null,null,null,null,null,"А",null,null,"А",null,0,0,0,0,0,0,0,0,2,0,0]
["Сасновский Алексей Иосифович",null,null,null,"Б","Б","Б","Б","Б","Б","БВ","БВ","Б","Б","Б","Б","Б","БВ","БВ","Б","Б","А","А","А",null,null,null,"А",null,null,null,null,null,null,null,0,0,0,0,4,13,17,0,4,0,0]
["Синкевич Валерий Чеславович",null,null,null,"Б","Б","Б",null,null,null,null,null,null,null,null,null,null,null,null,null,null,null,null,null,null,null,null,null,null,null,null,null,null,null,null,0,0,0,0,0,3,3,0,0,0,0]
["Сядковский Александр Леонардович",null,null,null,null,null,null,null,null,null,null,null,null,null,null,"А",null,null,null,"А",null,"А","А","А",null,null,null,null,null,null,null,null,null,null,null,0,0,0,0,0,0,0,0,5,0,0]
["Станулевич Марина Станиславовна",null,null,null,null,null,null,null,null,null,null,null,null,null,null,null,null,null,null,null,null,null,null,null,null,null,null,null,null,null,null,null,null,null,null,0,0,0,0,0,0,0,0,0,0,0]
["Урлик Владислав Ярославович",null,null,null,null,null,null,null,null,null,null,null,null,null,null,null,null,null,null,null,null,null,"А",null,null,null,null,null,null,"О","О","О","О","О",null,5,0,5,0,0,0,0,0,1,0,0]
["Янковский Станислав Иосифович",null,null,null,null,null,null,null,"Б",null,null,null,null,"Б",null,null,null,null,null,null,null,null,null,"А",null,null,null,null,null,null,"А",null,null,null,null,0,0,0,0,0,2,2,0,2,0,0]
["Ясевич Артур Иванович",null,null,null,null,null,null,null,null,null,null,null,null,null,null,null,"А",null,null,"А",null,null,null,null,null,null,null,null,null,null,null,null,null,null,null,0,0,0,0,0,0,0,0,{"$f":"COUNTIF(F119:AJ119,\"а\")","v":2},0,0]
["Итого человек",null,null,null,null,null,null,null,null,null,null,null,null,null,null,null,{"$f":"COUNTIF(Q90:Q119,\"а\")","v":5},null,null,null,null,null,null,null,null,null,null,null,null,null,null,null,null,null,null,{"$f":"COUNTIF(AJ90:AJ119,\">0\")","v":9},8,9,0,2,4,4,0,19,0,0]
["Итого дней",null,null,null,null,null,null,null,null,null,null,null,null,null,null,null,null,null,null,null,null,null,null,null,null,null,null,null,null,null,null,null,null,null,null,{"$f":"SUM(AJ90:AJ119)","v":74},22,96,0,6,26,32,0,42,0,0]
["ВСЕГО дней",null,null,null,null,null,null,null,null,null,null,null,null,null,null,null,null,null,null,null,null,null,null,null,null,null,null,null,null,null,null,null,null,null,null,{"$f":"AJ24+AJ84+AJ89+AJ121","v":170},{"$f":"AK121+AK89+AK84+AK24","v":60},{"$f":"AL24+AL84+AL89+AL121","v":230},0,18,62,80,0,153,0,0]
["ВСЕГО человек",null,null,null,null,null,null,null,null,null,null,null,null,null,null,null,null,null,null,null,null,null,null,null,null,null,null,null,null,null,null,null,null,null,null,{"$f":"AJ120+AJ88+AJ83+AJ23","v":19},16,19,0,6,9,9,0,{"$f":" AR120+AR88+AR83+AR23","v":79},{"$f":"COUNTIF(E123:AI123,\"п\")","v":0},{"$f":"COUNTIF(E123:AI123,\"ож\")","v":0}]
[null,null,null,null,{"$f":"COUNTIF(E90:E118,\"а\")","v":0},0,0,0,0,0,0,0,0,null,0,4,4,0,0,3,2,3,4,8,0,0,3,2,0,0,5,0,0,2,0,{"$f":"COUNTIF(E124:AI124,\"о\")","v":0},null,{"$f":"AJ124+#REF!","v":{"$error":"#REF!"}},{"$f":"COUNTIF(E124:AI124,\"р\")","v":0},{"$f":"COUNTIF(E124:AI124,\"бв\")","v":0},{"$f":"COUNTIF(E124:AI124,\"б\")","v":0},0,{"$f":"COUNTIF(E124:AI124,\"г\")","v":0},{"$f":"COUNTIF(E124:AI124,\"а\")","v":0},0,0]
[null,null,null,null,null,null,null,null,null,null,null,null,null,null,null,null,null,null,null,null,null,null,null,null,null,null,null,null,null,null,null,null,null,null,null,0,null,{"$f":"AJ125+#REF!","v":{"$error":"#REF!"}},0,0,0,0,0,0,0,0]
[null,null,null,null,null,null,null,null,null,null,null,null,null,null,null,null,null,null,null,null,null,null,null,null,null,null,null,null,null,null,null,null,null,null,null,0,null,{"$f":"AJ126+#REF!","v":{"$error":"#REF!"}},0,0,0,0,0,0,0,0]
[null,null,null,null,null,null,null,null,null,null,null,null,null,null,null,null,null,null,null,null,null,null,null,null,null,null,null,null,null,null,null,null,null,null,null,0,null,{"$f":"AJ127+#REF!","v":{"$error":"#REF!"}},0,0,0,0,0,0,0,0]
[null,null,null,null,null,null,null,null,null,null,null,null,null,null,null,null,null,null,null,null,null,null,null,null,null,null,null,null,null,null,null,null,null,null,null,0,null,{"$f":"AJ128+#REF!","v":{"$error":"#REF!"}},0,0,0,0,0,0,0,0]
[null,null,null,null,null,null,null,null,null,null,null,null,null,null,null,null,null,null,null,null,null,null,null,null,null,null,null,null,null,null,null,null,null,null,null,0,null,{"$f":"AJ129+#REF!","v":{"$error":"#REF!"}},0,0,0,0,0,0,0,0]
["ИТОГО",null,null,null,null,null,null,null,null,null,null,null,null,null,null,null,null,null,null,null,null,null,null,null,null,null,null,null,null,null,null,null,null,null,null,{"$f":"SUM(AJ2:AJ129)","v":548},null,{"$f":"SUM(AL2:AL129)","v":{"$error":"#REF!"}},{"$f":"SUM(AM2:AM129)","v":0},{"$f":"SUM(AN2:AN129)","v":66},{"$f":"SUM(AO2:AO129)","v":204},270,{"$f":"SUM(AQ2:AQ129)","v":0},{"$f":"SUM(AR2:AR129)","v":617},{"$f":"SUM(#REF!)","v":{"$error":"#REF!"}},{"$f":"SUM(#REF!)","v":{"$error":"#REF!"}}]